fUSD/lending_fUSD_20260405
["ID","MTS","AMOUNT","RATE_DAILY","PERIOD"]
[419853536,1775420849321,-500.0,0.00013,2]
[419853537,1775420849341,-500.0,0.00013,2]
[419853538,1775420849361,-500.0,0.00013,2]
[419853539,1775420849386,-500.0,0.00013,2]
[419853540,1775420849409,-500.0,0.00013,2]
[419853541,1775420849432,-500.0,0.00013,2]
[419853542,1775420849454,-500.0,0.00013,2]
[419853543,1775420849475,-500.0,0.00013,2]
[419853544,1775420849498,-500.0,0.00013,2]
[419853545,1775420849518,-500.0,0.00013,2]
[419853546,1775420849539,-500.0,0.00013,2]
[419853547,1775420849560,-500.0,0.00013,2]
[419853548,1775420849580,-500.0,0.00013,2]
[419853549,1775420849600,-500.0,0.00013,2]
[419853550,1775420849620,-500.0,0.00013,2]
[419853551,1775420849640,-500.0,0.00013,2]
[419853552,1775420849663,-500.0,0.00013,2]
[419853553,1775420849683,-500.0,0.00013,2]
[419853554,1775420849703,-500.0,0.00013,2]
[419853555,1775420849723,-49.69544273,0.00013,2]
[419853561,1775421032074,-1541.57,0.00012756,2]
[419853562,1775421032083,-1200.0,0.00012999,2]
[419853563,1775421032093,-150.0,0.00012999,2]
[419853564,1775421032102,-172.9172142,0.00013,2]
[419853565,1775421032111,-450.30455727,0.00013,2]
[419853566,1775421032120,-500.0,0.00013,2]
[419853567,1775421032129,-500.0,0.00013,2]
[419853568,1775421032138,-500.0,0.00013,2]
[419853569,1775421032147,-500.0,0.00013,2]
[419853570,1775421032156,-378.00822853,0.00013,2]
[419853579,1775421032446,-121.99177147,0.00013,2]
[419853580,1775421032456,-435.93232026,0.00013,2]
[419853581,1775421032682,-64.06767974,0.00013,2]
[419853582,1775421032692,-500.0,0.00013,2]
[419853583,1775421032702,-500.0,0.00013,2]
[419853584,1775421032711,-500.0,0.00013,2]
[419853585,1775421032719,-500.0,0.00013,2]
[419853586,1775421032729,-500.0,0.00013,2]
[419853587,1775421032739,-500.0,0.00013,2]
[419853588,1775421032749,-500.0,0.00013,2]
[419853589,1775421032758,-500.0,0.00013,2]
[419853590,1775421032769,-500.0,0.00013,2]
[419853591,1775421032779,-500.0,0.00013,2]
[419853592,1775421032791,-500.0,0.00013,2]
[419853593,1775421032801,-500.0,0.00013,2]
[419853594,1775421032810,-500.0,0.00013,2]
[419853595,1775421032820,-500.0,0.00013,2]
[419853596,1775421032830,-500.0,0.00013,2]
[419853597,1775421032841,-500.0,0.00013,2]
[419853598,1775421032851,-500.0,0.00013,2]
[419853599,1775421032861,-500.0,0.00013,2]
[419853600,1775421032870,-500.0,0.00013,2]
[419853601,1775421032879,-500.0,0.00013,2]
[419853602,1775421032890,-500.0,0.00013,2]
[419853603,1775421032899,-500.0,0.00013,2]
[419853604,1775421032909,-500.0,0.00013,2]
[419853605,1775421032918,-500.0,0.00013,2]
[419853606,1775421032927,-500.0,0.00013,2]
[419853607,1775421032936,-250.0,0.00013,2]
[419853608,1775421032946,-730.45,0.00013,2]
[419853609,1775421032956,-166.66,0.00013098,2]
[419853610,1775421032965,-507.0,0.00013111,2]
[419853611,1775421032975,-419.0,0.000132,2]
[419853612,1775421032984,-461.77643682,0.00013274,2]
[419853613,1775421032996,-268.67356318,0.00013274,2]
[419853614,1775421033005,-2212.60643682,0.00013398,2]
[419853626,1775421038497,-24942.83997792,0.00013398,2]
[419853628,1775421038507,-233.90358351,0.00013485,2]
[419853630,1775421038516,-500.0,0.00013494,2]
[419853632,1775421038526,-500.0,0.00013494,2]
[419853634,1775421038535,-425.89784069,0.00013494,2]
[419853636,1775421038544,-301.0885738,0.00013494,2]
[419853638,1775421038554,-1069767.67817101,0.00013495,2]
[419853762,1775421040734,-430232.32182899,0.00013495,2]
[419853763,1775421040744,-2500.0,0.00013498,2]
[419853764,1775421040754,-166.66,0.00013531,2]
[419853765,1775421040763,-730.45,0.00013548,2]
[419853766,1775421040773,-500.0,0.00013573,2]
[419853767,1775421040783,-4697.091,0.00013588,2]
[419853768,1775421040792,-266.178,0.00013588,2]
[419853769,1775421040802,-200.0,0.0001359,2]
[419853770,1775421040812,-1056.97114198,0.00013595,2]
[419853771,1775421040822,-25842.44248358,0.00013595,2]
[419853772,1775421040831,-500.0,0.00013597,2]
[419853773,1775421040840,-62843.2369,0.00013598,2]
[419853774,1775421040850,-27155.44641471,0.00013676,2]
[419853775,1775421040859,-150.0,0.00013695,2]
[419853776,1775421040868,-494.49776464,0.00013698,2]
[419853777,1775421040878,-500.0,0.00013698,2]
[419853778,1775421040887,-500.0,0.00013698,2]
[419853779,1775421040897,-500.0,0.00013698,2]
[419853780,1775421040907,-500.0,0.00013698,2]
[419853781,1775421040916,-500.0,0.00013698,2]
[419853782,1775421040926,-500.0,0.00013698,2]
[419853783,1775421040936,-500.0,0.00013698,2]
[419853784,1775421040946,-500.0,0.00013698,2]
[419853785,1775421040955,-500.0,0.00013698,2]
[419853786,1775421040964,-500.0,0.00013698,2]
[419853787,1775421040974,-500.0,0.00013698,2]
[419853788,1775421040984,-500.0,0.00013698,2]
[419853789,1775421040993,-500.0,0.00013698,2]
[419853790,1775421041003,-500.0,0.00013698,2]
[419853791,1775421041012,-500.0,0.00013698,2]
[419853792,1775421041021,-500.0,0.00013698,2]
[419853793,1775421041031,-500.0,0.00013698,2]
[419853794,1775421041041,-500.0,0.00013698,2]
[419853795,1775421041050,-500.0,0.00013698,2]
[419853796,1775421041061,-500.0,0.00013698,2]
[419853797,1775421041070,-500.0,0.00013698,2]
[419853798,1775421041080,-500.0,0.00013698,2]
[419853799,1775421041089,-978.74,0.00013698,2]
[419853800,1775421041098,-978.74,0.00013698,2]
[419853801,1775421041107,-978.74,0.00013698,2]
[419853802,1775421041116,-978.74,0.00013698,2]
[419853803,1775421041126,-978.74,0.00013698,2]
[419853804,1775421041136,-978.74,0.00013698,2]
[419853805,1775421041145,-978.74,0.00013698,2]
[419853806,1775421041155,-1269.86,0.00013698,2]
[419853807,1775421041164,-1269.86,0.00013698,2]
[419853808,1775421041173,-1269.86,0.00013698,2]
[419853809,1775421041182,-1269.86,0.00013698,2]
[419853810,1775421041192,-1269.86,0.00013698,2]
[419853811,1775421041201,-1269.86,0.00013698,2]
[419853812,1775421041210,-1269.86,0.00013698,2]
[419853813,1775421041219,-1269.86,0.00013698,2]
[419853814,1775421041228,-1140.37,0.00013698,2]
[419853815,1775421041237,-1140.37,0.00013698,2]
[419853816,1775421041247,-1140.37,0.00013698,2]
[419853817,1775421041256,-1140.37,0.00013698,2]
[419853818,1775421041265,-1140.37,0.00013698,2]
[419853819,1775421041275,-1140.37,0.00013698,2]
[419853820,1775421041284,-1143.16,0.00013698,2]
[419853821,1775421041294,-1143.16,0.00013698,2]
[419853822,1775421041303,-1143.16,0.00013698,2]
[419853823,1775421041313,-1143.16,0.00013698,2]
[419853824,1775421041323,-1143.16,0.00013698,2]
[419853825,1775421041332,-1143.16,0.00013698,2]
[419853826,1775421041342,-1143.16,0.00013698,2]
[419853827,1775421041351,-1143.16,0.00013698,2]
[419853828,1775421041360,-514.82,0.00013698,2]
[419853829,1775421041369,-514.82,0.00013698,2]
[419853830,1775421041378,-514.82,0.00013698,2]
[419853831,1775421041387,-514.82,0.00013698,2]
[419853832,1775421041397,-514.82,0.00013698,2]
[419853833,1775421041406,-514.82,0.00013698,2]
[419853834,1775421041415,-500.0,0.00013698,2]
[419853835,1775421041425,-500.0,0.00013698,2]
[419853836,1775421041438,-500.0,0.00013698,2]
[419853837,1775421041448,-500.0,0.00013698,2]
[419853838,1775421041456,-500.0,0.00013698,2]
[419853839,1775421041466,-500.0,0.00013698,2]
[419853840,1775421041475,-500.0,0.00013698,2]
[419853841,1775421041485,-500.0,0.00013698,2]
[419853842,1775421041494,-577.45498934,0.00013698,2]
[419853843,1775421041504,-673.65,0.00013698,2]
[419853844,1775421041513,-673.65,0.00013698,2]
[419853845,1775421041523,-673.65,0.00013698,2]
[419853846,1775421041532,-673.65,0.00013698,2]
[419853847,1775421041541,-673.65,0.00013698,2]
[419853848,1775421041550,-673.65,0.00013698,2]
[419853849,1775421041559,-673.65,0.00013698,2]
[419853850,1775421041569,-673.65,0.00013698,2]
[419853851,1775421041578,-385.93623428,0.00013698,2]
[419853852,1775421041587,-500.0,0.00013698,2]
[419853853,1775421041596,-500.0,0.00013698,2]
[419853854,1775421041605,-500.0,0.00013698,2]
[419853855,1775421041615,-500.0,0.00013698,2]
[419853856,1775421041626,-500.0,0.00013698,2]
[419853857,1775421041636,-500.0,0.00013698,2]
[419853858,1775421041648,-500.0,0.00013698,2]
[419853859,1775421041658,-500.0,0.00013698,2]
[419853860,1775421041667,-500.0,0.00013698,2]
[419853861,1775421041676,-500.0,0.00013698,2]
[419853862,1775421041687,-500.0,0.00013698,2]
[419853863,1775421041699,-500.0,0.00013698,2]
[419853864,1775421041710,-500.0,0.00013698,2]
[419853865,1775421041720,-500.0,0.00013698,2]
[419853866,1775421041730,-500.0,0.00013698,2]
[419853867,1775421041739,-500.0,0.00013698,2]
[419853868,1775421041749,-500.0,0.00013698,2]
[419853869,1775421041759,-780.77,0.00013698,2]
[419853870,1775421041768,-780.77,0.00013698,2]
[419853871,1775421041778,-780.77,0.00013698,2]
[419853872,1775421041787,-780.77,0.00013698,2]
[419853873,1775421041796,-780.77,0.00013698,2]
[419853874,1775421041805,-780.77,0.00013698,2]
[419853875,1775421041814,-500.0,0.00013698,2]
[419853876,1775421041823,-500.0,0.00013698,2]
[419853877,1775421041833,-500.0,0.00013698,2]
[419853878,1775421041843,-500.0,0.00013698,2]
[419853879,1775421041852,-500.0,0.00013698,2]
[419853880,1775421041861,-500.0,0.00013698,2]
[419853881,1775421041871,-500.0,0.00013698,2]
[419853882,1775421041880,-500.0,0.00013698,2]
[419853883,1775421041889,-500.0,0.00013698,2]
[419853884,1775421041899,-500.0,0.00013698,2]
[419853885,1775421041908,-500.0,0.00013698,2]
[419853886,1775421041918,-500.0,0.00013698,2]
[419853887,1775421041927,-713.35,0.00013698,2]
[419853888,1775421041936,-713.35,0.00013698,2]
[419853889,1775421041946,-713.35,0.00013698,2]
[419853890,1775421041955,-713.35,0.00013698,2]
[419853891,1775421041965,-713.35,0.00013698,2]
[419853892,1775421041975,-713.35,0.00013698,2]
[419853893,1775421041985,-1151.32,0.00013698,2]
[419853894,1775421041994,-1151.32,0.00013698,2]
[419853895,1775421042003,-1151.32,0.00013698,2]
[419853896,1775421042012,-1151.32,0.00013698,2]
[419853897,1775421042021,-1151.32,0.00013698,2]
[419853898,1775421042031,-1151.32,0.00013698,2]
[419853899,1775421042040,-500.0,0.00013698,2]
[419853900,1775421042049,-500.0,0.00013698,2]
[419853901,1775421042059,-500.0,0.00013698,2]
[419853902,1775421042068,-500.0,0.00013698,2]
[419853903,1775421042077,-500.0,0.00013698,2]
[419853904,1775421042087,-500.0,0.00013698,2]
[419853905,1775421042097,-551.83212521,0.00013698,2]
[419853906,1775421042106,-500.0,0.00013698,2]
[419853907,1775421042115,-500.0,0.00013698,2]
[419853908,1775421042126,-500.0,0.00013698,2]
[419853909,1775421042136,-500.0,0.00013698,2]
[419853910,1775421042147,-500.0,0.00013698,2]
[419853911,1775421042156,-183.58723642,0.00013698,2]
[419853912,1775421042166,-1063.21,0.00013698,2]
[419853913,1775421042176,-1063.21,0.00013698,2]
[419853914,1775421042187,-1063.21,0.00013698,2]
[419853915,1775421042197,-1063.21,0.00013698,2]
[419853916,1775421042207,-1063.21,0.00013698,2]
[419853917,1775421042217,-1063.21,0.00013698,2]
[419853918,1775421042226,-500.0,0.00013698,2]
[419853919,1775421042237,-500.0,0.00013698,2]
[419853920,1775421042247,-500.0,0.00013698,2]
[419853921,1775421042258,-500.0,0.00013698,2]
[419853922,1775421042269,-500.0,0.00013698,2]
[419853923,1775421042278,-500.0,0.00013698,2]
[419853924,1775421042287,-500.0,0.00013698,2]
[419853925,1775421042296,-504.35317897,0.00013698,2]
[419853926,1775421042305,-620.62,0.00013698,2]
[419853927,1775421042314,-620.62,0.00013698,2]
[419853928,1775421042323,-620.62,0.00013698,2]
[419853929,1775421042333,-620.62,0.00013698,2]
[419853930,1775421042342,-620.62,0.00013698,2]
[419853931,1775421042351,-620.62,0.00013698,2]
[419853932,1775421042360,-500.0,0.00013698,2]
[419853933,1775421042370,-500.0,0.00013698,2]
[419853934,1775421042380,-500.0,0.00013698,2]
[419853935,1775421042390,-500.0,0.00013698,2]
[419853936,1775421042399,-500.0,0.00013698,2]
[419853937,1775421042409,-500.0,0.00013698,2]
[419853938,1775421042418,-500.0,0.00013698,2]
[419853939,1775421042427,-500.0,0.00013698,2]
[419853940,1775421042437,-500.0,0.00013698,2]
[419853941,1775421042447,-500.0,0.00013698,2]
[419853942,1775421042456,-500.0,0.00013698,2]
[419853943,1775421042466,-500.0,0.00013698,2]
[419853944,1775421042476,-500.0,0.00013698,2]
[419853945,1775421042485,-150.0,0.00013699,2]
[419853946,1775421042494,-150.0,0.00013699,2]
[419853947,1775421042504,-150.0,0.00013699,2]
[419853948,1775421042514,-150.0,0.00013699,2]
[419853949,1775421042525,-150.0,0.00013699,2]
[419853950,1775421042535,-150.0,0.00013699,2]
[419853951,1775421042544,-150.0,0.00013699,2]
[419853952,1775421042554,-5957.33,0.00013699,2]
[419853953,1775421042564,-166.66,0.00013699,2]
[419853954,1775421042574,-2146.25,0.00013699,2]
[419853955,1775421042584,-476.08,0.00013699,2]
[419853956,1775421042595,-396.73,0.00013699,2]
[419853957,1775421042606,-330.61,0.00013699,2]
[419853958,1775421042616,-275.51,0.00013699,2]
[419853959,1775421042625,-229.59,0.00013699,2]
[419853960,1775421042634,-191.33,0.00013699,2]
[419853961,1775421042644,-159.44,0.00013699,2]
[419853962,1775421042654,-797.21,0.00013699,2]
[419853963,1775421042665,-1697.4,0.00013699,2]
[419853964,1775421042675,-152.37,0.00013699,2]
[419853965,1775421042685,-500.0,0.00013699,2]
[419853966,1775421042696,-633.93373005,0.00013699,2]
[419853967,1775421042706,-665.0,0.00013728,2]
[419853968,1775421042716,-462.0,0.00013728,2]
[419853969,1775421042725,-195.76,0.00013799,2]
[419853970,1775421042734,-730.45,0.00013822,2]
[419853971,1775421042743,-166.66,0.00013836,2]
[419853972,1775421042753,-500.0,0.0001385,2]
[419853973,1775421042763,-780.77,0.0001385,2]
[419853974,1775421042773,-25842.44248354,0.00013851,2]
[419853975,1775421042782,-500.0,0.00013871,2]
[419853976,1775421042792,-1000.0,0.00013906,2]
[419853977,1775421042802,-4790.1423461,0.00013935,2]
[419853978,1775421042811,-27155.44641471,0.00013954,2]
[419853979,1775421042820,-166.66,0.00013963,2]
[419853980,1775421042829,-150.0,0.00013969,2]
[419853981,1775421042839,-150.0,0.00013973,2]
[419853982,1775421042849,-150.0,0.00013973,2]
[419853983,1775421042858,-150.0,0.00013973,2]
[419853984,1775421042867,-150.0,0.00013973,2]
[419853985,1775421042876,-150.0,0.00013973,2]
[419853986,1775421042886,-150.0,0.00013973,2]
[419853987,1775421042895,-150.0,0.00013973,2]
[419853988,1775421042905,-166.66,0.00013973,2]
[419853989,1775421042914,-1056.97114196,0.00013979,2]
[419853990,1775421042923,-60000.0,0.00014006,2]
[419853991,1775421042933,-300.0,0.00014031,2]
[419853992,1775421042942,-300.0,0.00014031,2]
[419853993,1775421042951,-300.0,0.00014031,2]
[419853994,1775421042961,-300.0,0.00014031,2]
[419853995,1775421042970,-425.2863973,0.00014031,2]
[419853996,1775421042981,-500.0,0.00014031,2]
[419853997,1775421042990,-500.0,0.00014031,2]
[419853998,1775421043000,-500.0,0.00014031,2]
[419853999,1775421043010,-500.0,0.00014031,2]
[419854000,1775421043019,-595.82296535,0.00014031,2]
[419854001,1775421043028,-155.19654635,0.00014035,2]
[419854002,1775421043038,-523.12,0.00014063,2]
[419854003,1775421043048,-1269.86,0.00014063,2]
[419854004,1775421043057,-1143.16,0.00014063,2]
[419854005,1775421043067,-673.65,0.00014063,2]
[419854006,1775421043077,-507.0,0.00014095,2]
[419854007,1775421043086,-730.45,0.00014096,2]
[419854008,1775421043096,-255.0,0.00014104,2]
[419854009,1775421043106,-25842.44248354,0.00014107,2]
[419854010,1775421043116,-166.66,0.0001411,2]
[419854011,1775421043126,-150.0,0.00014137,2]
[419854012,1775421043136,-200.0,0.00014138,2]
[419854013,1775421043146,-500.0,0.00014145,2]
[419854014,1775421043156,-150.0,0.000142,2]
[419854015,1775421043165,-150.0,0.00014203,2]
[419854016,1775421043175,-150.0,0.00014206,2]
[419854017,1775421043184,-267.272602,0.00014207,2]
[419854018,1775421043193,-160.0,0.00014214,7]
[419854019,1775421043202,-1814.99892,0.00014214,7]
[419854020,1775421043212,-3469.99784,0.00014214,7]
[419854021,1775421043221,-160.0,0.00014214,2]
[419854022,1775421043230,-3932.755904,0.00014214,2]
[419854023,1775421043239,-7705.511808,0.00014214,2]
[419854024,1775421043249,-160.0,0.00014214,7]
[419854025,1775421043258,-6559.599396,0.00014214,7]
[419854026,1775421043267,-12959.198792,0.00014214,7]
[419854027,1775421043277,-4790.14234605,0.00014216,2]
[419854028,1775421043286,-27155.44641471,0.00014232,2]
[419854029,1775421043295,-150.0,0.00014243,2]
[419854030,1775421043305,-166.66,0.00014247,2]
[419854031,1775421043315,-150.0,0.00014247,2]
[419854032,1775421043324,-150.0,0.00014247,2]
[419854033,1775421043334,-150.0,0.00014247,2]
[419854034,1775421043344,-150.0,0.00014247,2]
[419854035,1775421043354,-150.0,0.00014247,2]
[419854036,1775421043365,-150.0,0.00014247,2]
[419854037,1775421043375,-1650.0,0.00014265,2]
[419854038,1775421043384,-1650.0,0.00014265,2]
[419854039,1775421043394,-1650.0,0.00014265,2]
[419854040,1775421043404,-1650.0,0.00014265,2]
[419854041,1775421043414,-1650.0,0.00014265,2]
[419854042,1775421043424,-1650.0,0.00014265,2]
[419854043,1775421043434,-1650.0,0.00014265,2]
[419854044,1775421043444,-1650.0,0.00014265,2]
[419854045,1775421043453,-1650.0,0.00014265,2]
[419854046,1775421043463,-1551.0,0.00014265,2]
[419854047,1775421043472,-500.0,0.00014298,2]
[419854048,1775421043482,-195.0,0.00014299,2]
[419854049,1775421043491,-300.0,0.00014299,2]
[419854050,1775421043500,-600.0,0.00014299,2]
[419854051,1775421043511,-195.0,0.00014299,2]
[419854052,1775421043520,-1680.0,0.00014299,2]
[419854053,1775421043531,-2500.0,0.000143,2]
[419854054,1775421043540,-2500.0,0.000143,2]
[419854055,1775421043550,-2500.0,0.000143,2]
[419854056,1775421043560,-2500.0,0.000143,2]
[419854057,1775421043569,-2500.0,0.000143,2]
[419854058,1775421043578,-195.0,0.000143,2]
[419854059,1775421043588,-2000.0,0.00014313,2]
[419854060,1775421043597,-2000.0,0.00014313,2]
[419854061,1775421043607,-2000.0,0.00014313,2]
[419854062,1775421043616,-2000.0,0.00014313,2]
[419854063,1775421043626,-2000.0,0.00014313,2]
[419854064,1775421043635,-2000.0,0.00014313,2]
[419854065,1775421043645,-2000.0,0.00014313,2]
[419854066,1775421043655,-2000.0,0.00014313,2]
[419854067,1775421043665,-2000.0,0.00014313,2]
[419854068,1775421043674,-2000.0,0.00014313,2]
[419854069,1775421043684,-2000.0,0.00014313,2]
[419854070,1775421043694,-2000.0,0.00014313,2]
[419854071,1775421043703,-2000.0,0.00014313,2]
[419854072,1775421043713,-2000.0,0.00014313,2]
[419854074,1775421043722,-2000.0,0.00014313,2]
[419854076,1775421043732,-2000.0,0.00014313,2]
[419854077,1775421043741,-587.0,0.00014313,2]
[419854079,1775421043751,-1056.97114196,0.00014363,2]
[419854081,1775421043761,-25842.44248354,0.00014363,2]
[419854082,1775421043770,-730.47971614,0.0001437,2]
[419854083,1775421043780,-5957.33,0.00014384,2]
[419854084,1775421043789,-166.66,0.00014384,2]
[419854085,1775421043799,-166.66,0.00014396,2]
[419854086,1775421043808,-150.0,0.000144,2]
[419854087,1775421043818,-150.0,0.000144,2]
[419854088,1775421043828,-150.0,0.000144,2]
[419854089,1775421043839,-150.0,0.000144,2]
[419854090,1775421043848,-150.0,0.000144,2]
[419854091,1775421043858,-150.0,0.000144,2]
[419854092,1775421043868,-150.0,0.000144,2]
[419854093,1775421043878,-150.0,0.000144,2]
[419854094,1775421043887,-150.0,0.000144,2]
[419854095,1775421043897,-150.0,0.000144,2]
[419854096,1775421043906,-150.0,0.000144,2]
[419854097,1775421043915,-150.0,0.000144,2]
[419854098,1775421043925,-150.0,0.000144,2]
[419854099,1775421043935,-150.0,0.000144,2]
[419854100,1775421043944,-150.0,0.00014419,2]
[419854101,1775421043953,-150.0,0.00014423,2]
[419854102,1775421043963,-150.0,0.00014424,2]
[419854103,1775421043972,-500.0,0.0001443,2]
[419854104,1775421043981,-978.74,0.0001443,2]
[419854105,1775421043991,-150.0,0.0001443,2]
[419854106,1775421044000,-150.0,0.00014431,2]
[419854107,1775421044010,-150.0,0.00014432,2]
[419854108,1775421044019,-150.0,0.00014438,2]
[419854109,1775421044028,-2000.0,0.00014438,2]
[419854110,1775421044038,-2000.0,0.00014438,2]
[419854111,1775421044048,-2000.0,0.00014438,2]
[419854112,1775421044057,-2000.0,0.00014438,2]
[419854113,1775421044067,-2000.0,0.00014438,2]
[419854114,1775421044076,-2000.0,0.00014438,2]
[419854115,1775421044085,-2000.0,0.00014438,2]
[419854116,1775421044094,-2000.0,0.00014438,2]
[419854117,1775421044103,-2000.0,0.00014438,2]
[419854118,1775421044113,-2000.0,0.00014438,2]
[419854119,1775421044122,-2000.0,0.00014438,2]
[419854120,1775421044131,-2000.0,0.00014438,2]
[419854121,1775421044141,-2000.0,0.00014438,2]
[419854122,1775421044152,-2000.0,0.00014438,2]
[419854123,1775421044162,-2000.0,0.00014438,2]
[419854124,1775421044172,-2000.0,0.00014438,2]
[419854125,1775421044181,-2000.0,0.00014438,2]
[419854126,1775421044191,-2000.0,0.00014438,2]
[419854127,1775421044201,-2000.0,0.00014438,2]
[419854128,1775421044210,-2000.0,0.00014438,2]
[419854129,1775421044220,-150.0,0.00014445,2]
[419854130,1775421044230,-150.0,0.00014448,2]
[419854131,1775421044239,-150.0,0.00014455,2]
[419854132,1775421044250,-150.0,0.00014456,2]
[419854133,1775421044259,-150.0,0.0001446,2]
[419854134,1775421044269,-150.0,0.00014462,2]
[419854135,1775421044279,-150.0,0.00014464,2]
[419854136,1775421044289,-150.0,0.00014468,2]
[419854137,1775421044299,-150.0,0.00014472,2]
[419854138,1775421044309,-150.0,0.00014473,2]
[419854139,1775421044319,-150.0,0.00014475,2]
[419854140,1775421044329,-150.0,0.0001449,2]
[419854141,1775421044340,-150.0,0.00014491,2]
[419854142,1775421044350,-150.0,0.00014492,2]
[419854143,1775421044361,-150.0,0.00014494,2]
[419854144,1775421044372,-150.0,0.00014496,2]
[419854145,1775421044384,-150.0,0.00014496,2]
[419854146,1775421044394,-4790.14234605,0.00014496,2]
[419854147,1775421044404,-150.0,0.000145,2]
[419854148,1775421044415,-1140.37,0.00014504,2]
[419854149,1775421044425,-514.82,0.00014504,2]
[419854150,1775421044435,-500.0,0.00014504,2]
[419854151,1775421044446,-500.0,0.00014504,2]
[419854152,1775421044457,-500.0,0.00014504,2]
[419854153,1775421044467,-500.0,0.00014504,2]
[419854154,1775421044805,-713.35,0.00014504,2]
[419854155,1775421044818,-1151.32,0.00014504,2]
[419854156,1775421044828,-500.0,0.00014504,2]
[419854157,1775421044838,-1063.21,0.00014504,2]
[419854158,1775421044848,-500.0,0.00014504,2]
[419854159,1775421044858,-620.62,0.00014504,2]
[419854160,1775421044868,-500.0,0.00014504,2]
[419854161,1775421044878,-150.99,0.00014504,2]
[419854162,1775421044888,-7124.75,0.00014504,2]
[419854163,1775421044898,-299.99,0.00014504,2]
[419854164,1775421044908,-315.0,0.00014506,4]
[419854165,1775421044919,-27155.44641471,0.0001451,2]
[419854166,1775421044929,-150.0,0.0001451,2]
[419854167,1775421044938,-150.0,0.00014513,2]
[419854168,1775421044948,-150.0,0.00014513,2]
[419854169,1775421044959,-287.27615736,0.00014517,2]
[419854170,1775421044969,-150.0,0.00014519,2]
[419854171,1775421044979,-150.0,0.00014521,2]
[419854172,1775421044989,-150.0,0.00014523,2]
[419854173,1775421044998,-150.0,0.00014528,2]
[419854174,1775421045008,-150.0,0.00014532,2]
[419854175,1775421045018,-315.0,0.00014535,4]
[419854176,1775421045028,-150.0,0.00014535,2]
[419854177,1775421045038,-150.0,0.00014543,2]
[419854178,1775421045048,-150.0,0.00014545,2]
[419854179,1775421045057,-150.0,0.00014551,2]
[419854180,1775421045066,-150.0,0.00014551,2]
[419854181,1775421045076,-150.0,0.00014554,2]
[419854182,1775421045085,-150.0,0.00014558,2]
[419854183,1775421045094,-150.0,0.0001456,2]
[419854184,1775421045104,-150.0,0.00014566,2]
[419854185,1775421045114,-150.0,0.00014567,2]
[419854186,1775421045124,-150.0,0.00014569,2]
[419854187,1775421045133,-150.0,0.0001458,2]
[419854188,1775421045143,-150.0,0.00014581,2]
[419854189,1775421045153,-150.0,0.00014585,2]
[419854190,1775421045163,-150.0,0.00014588,2]
[419854191,1775421045173,-150.0,0.00014591,2]
[419854192,1775421045182,-150.0,0.00014592,2]